[Event "Speed Chess Championship 2020"]
[Site "Online"]
[Date "2020.11.04"]
[Round "1.15"]
[White "Firouzja, Alireza"]
[Black "Fedoseev, Vladimir"]
[Result "1-0"]
[ECO "A11"]
[WhiteElo "2749"]
[BlackElo "2676"]
[Annotator "ChessBase"]
[PlyCount "155"]
[EventDate "2020.10.31"]
[EventType "k.o."]
[SourceTitle "playchess.com"]
[Source "ChessBase"]
[SourceQuality "1"]
[TimeControl "180+1"]

1. Nf3 {[%emt 0:00:01]} d5 {[%emt 0:00:01]} 2. g3 {[%emt 0:00:00]} c6 {[%emt 0:00:00]} 3. Bg2 {[%emt 0:00:02]} Bf5 {[%emt 0:00:01]} 4. O-O {[%emt 0:00:06]} e6 {[%emt 0:00:01]} 5. d3 {[%emt 0:00:03]} Nf6 {[%emt 0:00:01]} 6. c4 {[%emt 0:00:08]} dxc4 {[%emt 0:00:05]} 7. dxc4 {[%emt 0:00:01]} Qxd1 {[%emt 0:00:00]} 8. Rxd1 {[%emt 0:00:01]} Nbd7 {[%emt 0:00:01]} 9. Nc3 {[%emt 0:00:14]} e5 {[%emt 0:00:04]} 10. b3 {[%emt 0:00:10]} Bb4 {[%emt 0:00:15]} 11. Bb2 {[%emt 0:00:04]} O-O {[%emt 0:00:02]} 12. Nh4 {[%emt 0:00:26]} Be6 {[%emt 0:00:04]} 13. Ne4 {[%emt 0:00:01]} Nxe4 {[%emt 0:00:05]} 14. Bxe4 {[%emt 0:00:01]} g6 {[%emt 0:00:01]} 15. Nf3 {[%emt 0:00:27]} f6 {[%emt 0:00:02]} 16. Kg2 {[%emt 0:00:02]} a5 {[%emt 0:00:03]} 17. Rac1 {[%emt 0:00:07]} Be7 {[%emt 0:00:04]} 18. Bc3 {[%emt 0:00:21]} a4 {[%emt 0:00:15]} 19. b4 {[%emt 0:00:19]} Nb6 {[%emt 0:00:01]} 20. c5 {[%emt 0:00:01]} Nd5 {[%emt 0:00:11]} 21. a3 {[%emt 0:00:03]} Rfd8 {[%emt 0:00:01]} 22. Bb2 {[%emt 0:00:04]} Bf8 {[%emt 0:00:23]} 23. Bc2 {[%emt 0:00:04]} Bh6 {[%emt 0:00:01]} 24. e3 {[%emt 0:00:12]} Kf7 {[%emt 0:00:28]} 25. Re1 {[%emt 0:00:01]} Nc7 {[%emt 0:00:03]} 26. Rcd1 {[%emt 0:00:02]} Bd5 {[%emt 0:00:02]} 27. g4 {[%emt 0:00:07]} Nb5 {[%emt 0:00:13]} 28. Kg3 {[%emt 0:00:01]} Bg7 {[%emt 0:00:07]} 29. e4 {[%emt 0:00:03]} Be6 {[%emt 0:00:29]} 30. Rxd8 {[%emt 0:00:01]} Rxd8 {[%emt 0:00:00]} 31. Rd1 {[%emt 0:00:01]} Ra8 {[%emt 0:00:02]} 32. g5 {[%emt 0:00:04]} Ke7 {[%emt 0:00:01]} 33. h4 {[%emt 0:00:04]} f5 {[%emt 0:00:01]} 34. Re1 {[%emt 0:00:04]} f4+ {[%emt 0:00:02]} 35. Kg2 {[%emt 0:00:00]} Bb3 {[%emt 0:00:00]} 36. Bd3 {[%emt 0:00:02]} Ke6 {[%emt 0:00:05]} 37. Re2 {[%emt 0:00:03]} Rd8 {[%emt 0:00:02]} 38. Rd2 {[%emt 0:00:03]} Rd7 {[%emt 0:00:05]} 39. Kg1 {[%emt 0:00:01]} Nc7 {[%emt 0:00:01]} 40. Bf1 {[%emt 0:00:02]} Rxd2 {[%emt 0:00:02]} 41. Nxd2 {[%emt 0:00:00]} Ba2 {[%emt 0:00:00]} 42. Bh3+ {[%emt 0:00:01]} Ke7 {[%emt 0:00:02]} 43. Nf3 {[%emt 0:00:01]} Nb5 {[%emt 0:00:01]} 44. Bf1 {[%emt 0:00:00]} Nd4 {[%emt 0:00:02]} 45. Nxd4 {[%emt 0:00:01]} exd4 {[%emt 0:00:00]} 46. Bd3 {[%emt 0:00:01]} f3 {[%emt 0:00:02]} 47. Kf1 {[%emt 0:00:03]} Be5 {[%emt 0:00:01]} 48. Bc1 {[%emt 0:00:01]} Bb3 {[%emt 0:00:03]} 49. Ke1 {[%emt 0:00:01]} Ke6 {[%emt 0:00:00]} 50. Bd2 {[%emt 0:00:01]} Bh2 {[%emt 0:00:01]} 51. Kf1 {[%emt 0:00:01]} Ke5 {[%emt 0:00:01]} 52. Bc1 {[%emt 0:00:01]} Bf4 {[%emt 0:00:01]} 53. Bxf4+ {[%emt 0:00:03]} Kxf4 {[%emt 0:00:01]} 54. Ke1 {[%emt 0:00:00]} Kg4 {[%emt 0:00:00]} 55. e5 {[%emt 0:00:02]} Kxh4 {[%emt 0:00:03]} 56. b5 {[%emt 0:00:00]} Kxg5 {[%emt 0:00:02]} 57. b6 {[%emt 0:00:01]} Be6 {[%emt 0:00:03]} 58. Be4 {[%emt 0:00:00]} Bc8 {[%emt 0:00:01]} 59. Bxf3 {[%emt 0:00:02]} Kf4 {[%emt 0:00:01]} 60. Bxc6 {[%emt 0:00:01]} Kxe5 {[%emt 0:00:03]} 61. Bxa4 {[%emt 0:00:01]} d3 {[%emt 0:00:00]} 62. c6 {[%emt 0:00:01]} Kd4 {[%emt 0:00:01]} 63. Kd2 {[%emt 0:00:01]} Kc5 {[%emt 0:00:02]} 64. cxb7 {[%emt 0:00:01]} Bxb7 {[%emt 0:00:00]} 65. Kxd3 {[%emt 0:00:01]} Kxb6 {[%emt 0:00:01]} 66. Ke3 {[%emt 0:00:00]} Kc7 {[%emt 0:00:01]} 67. Bc2 {[%emt 0:00:01]} Kd6 {[%emt 0:00:01]} 68. Kf4 {[%emt 0:00:00]} Ke6 {[%emt 0:00:07]} 69. Kg5 {[%emt 0:00:01]} Kf7 {[%emt 0:00:00]} 70. Kh6 {[%emt 0:00:01]} Kg8 {[%emt 0:00:01]} 71. Bb3+ {[%emt 0:00:01]} Kh8 {[%emt 0:00:00]} 72. a4 {[%emt 0:00:00]} Ba6 {[%emt 0:00:01]} 73. a5 {[%emt 0:00:01]} Bb5 {[%emt 0:00:01]} 74. Bd5 {[%emt 0:00:01]} Ba6 {[%emt 0:00:00]} 75. f4 {[%emt 0:00:00]} g5 {[%emt 0:00:04]} 76. fxg5 {[%emt 0:00:02]} Bc4 {[%emt 0:00:01]} 77. Be4 {[%emt 0:00:00]} Ba6 {[%emt 0:00:00]} 78. Bxh7 {[%emt 0:00:02]} 1-0

[Event "Speed Chess Championship 2020"]
[Site "Online"]
[Date "2020.11.12"]
[Round "1.15"]
[White "Nakamura, Hikaru"]
[Black "Martirosyan, Haik M."]
[Result "1-0"]
[ECO "D37"]
[WhiteElo "2736"]
[BlackElo "2622"]
[Annotator "ChessBase"]
[PlyCount "105"]
[EventDate "2020.10.31"]
[EventType "k.o."]
[SourceTitle "playchess.com"]
[Source "ChessBase"]
[SourceQuality "1"]
[TimeControl "180+1"]

1. d4 {[%emt 0:00:01]} Nf6 {[%emt 0:00:01]} 2. Nf3 {[%emt 0:00:00]} e6 {[%emt 0:00:01]} 3. c4 {[%emt 0:00:00]} d5 {[%emt 0:00:00]} 4. Nc3 {[%emt 0:00:01]} Be7 {[%emt 0:00:00]} 5. Bf4 {[%emt 0:00:00]} O-O {[%emt 0:00:01]} 6. e3 {[%emt 0:00:00]} Nbd7 {[%emt 0:00:00]} 7. Be2 {[%emt 0:00:01]} dxc4 {[%emt 0:00:02]} 8. O-O {[%emt 0:00:00]} a6 {[%emt 0:00:00]} 9. a4 {[%emt 0:00:01]} c5 {[%emt 0:00:01]} 10. d5 {[%emt 0:00:00]} exd5 {[%emt 0:00:01]} 11. Nxd5 {[%emt 0:00:01]} Nxd5 {[%emt 0:00:01]} 12. Qxd5 {[%emt 0:00:01]} Nf6 {[%emt 0:00:00]} 13. Qxd8 {[%emt 0:00:10]} Rxd8 {[%emt 0:00:00]} 14. Bxc4 {[%emt 0:00:02]} Nd5 {[%emt 0:00:10]} 15. Rfd1 {[%emt 0:00:08]} Be6 {[%emt 0:00:07]} 16. Bg3 {[%emt 0:00:08]} Bf6 {[%emt 0:00:03]} 17. Be5 {[%emt 0:00:01]} Bxe5 {[%emt 0:00:37]} 18. Nxe5 {[%emt 0:00:00]} Kf8 {[%emt 0:00:05]} 19. a5 {[%emt 0:00:06]} Ke7 {[%emt 0:00:02]} 20. Rac1 {[%emt 0:00:22]} Rac8 {[%emt 0:00:05]} 21. h4 {[%emt 0:00:07]} f6 {[%emt 0:00:19]} 22. Nd3 {[%emt 0:00:06]} Rc7 {[%emt 0:00:21]} 23. Kf1 {[%emt 0:00:03]} Rdc8 {[%emt 0:00:16]} 24. Ke2 {[%emt 0:00:09]} Nb4 {[%emt 0:00:13]} 25. Nf4 {[%emt 0:00:09]} Bxc4+ {[%emt 0:00:07]} 26. Rxc4 {[%emt 0:00:00]} f5 {[%emt 0:00:24]} 27. g4 {[%emt 0:00:14]} fxg4 {[%emt 0:00:09]} 28. Rg1 {[%emt 0:00:25]} Kf7 {[%emt 0:00:01]} 29. Rxg4 {[%emt 0:00:01]} h6 {[%emt 0:00:14]} 30. Nh5 {[%emt 0:00:05]} Kg8 {[%emt 0:00:05]} 31. Nf6+ {[%emt 0:00:01]} Kh8 {[%emt 0:00:01]} 32. Ne4 {[%emt 0:00:01]} Nd5 {[%emt 0:00:01]} 33. Rg6 {[%emt 0:00:06]} Re7 {[%emt 0:00:01]} 34. Ng3 {[%emt 0:00:14]} Kh7 {[%emt 0:00:02]} 35. Rd6 {[%emt 0:00:02]} Nf6 {[%emt 0:00:01]} 36. Rb6 {[%emt 0:00:14]} Nd5 {[%emt 0:00:01]} 37. Rd6 {[%emt 0:00:00]} Nf6 {[%emt 0:00:01]} 38. b3 {[%emt 0:00:01]} Rf7 {[%emt 0:00:03]} 39. h5 {[%emt 0:00:04]} Rfc7 {[%emt 0:00:01]} 40. Re6 {[%emt 0:00:08]} Rc6 {[%emt 0:00:01]} 41. Rxc6 {[%emt 0:00:02]} Rxc6 {[%emt 0:00:00]} 42. e4 {[%emt 0:00:00]} b5 {[%emt 0:00:01]} 43. axb6 {[%emt 0:00:01]} Rxb6 {[%emt 0:00:01]} 44. Rxc5 {[%emt 0:00:07]} Rxb3 {[%emt 0:00:01]} 45. Rc7 {[%emt 0:00:01]} Rb5 {[%emt 0:00:01]} 46. Ra7 {[%emt 0:00:07]} Nxh5 {[%emt 0:00:01]} 47. Nf5 {[%emt 0:00:01]} Kh8 {[%emt 0:00:02]} 48. Rxa6 {[%emt 0:00:01]} Re5 {[%emt 0:00:01]} 49. Ke3 {[%emt 0:00:02]} Re8 {[%emt 0:00:01]} 50. Nxh6 {[%emt 0:00:04]} Nf6 {[%emt 0:00:01]} 51. Nf7+ {[%emt 0:00:01]} Kh7 {[%emt 0:00:01]} 52. Nd6 {[%emt 0:00:00]} Kg6 {[%emt 0:00:00]} 53. Nxe8 {[%emt 0:00:00]} 1-0

[Event "Speed Chess Championship 2020"]
[Site "Online"]
[Date "2020.11.08"]
[Round "1.16"]
[White "Abdusattorov, Nodirbek"]
[Black "So, Wesley"]
[Result "0-1"]
[ECO "C67"]
[WhiteElo "2662"]
[BlackElo "2816"]
[Annotator "ChessBase"]
[PlyCount "102"]
[EventDate "2020.10.31"]
[EventType "k.o."]
[SourceTitle "playchess.com"]
[Source "ChessBase"]
[SourceQuality "1"]
[TimeControl "180+1"]

1. e4 {[%emt 0:00:01]} e5 {[%emt 0:00:01]} 2. Nf3 {[%emt 0:00:01]} Nc6 {[%emt 0:00:00]} 3. Bb5 {[%emt 0:00:00]} Nf6 {[%emt 0:00:00]} 4. O-O {[%emt 0:00:02]} Nxe4 {[%emt 0:00:02]} 5. d4 {[%emt 0:00:02]} Nd6 {[%emt 0:00:01]} 6. dxe5 {[%emt 0:00:00]} Nxb5 {[%emt 0:00:01]} 7. a4 {[%emt 0:00:00]} Nbd4 {[%emt 0:00:02]} 8. Nxd4 {[%emt 0:00:01]} Nxd4 {[%emt 0:00:02]} 9. Qxd4 {[%emt 0:00:00]} d5 {[%emt 0:00:00]} 10. exd6 {[%emt 0:00:00]} Qxd6 {[%emt 0:00:02]} 11. Qe3+ {[%emt 0:00:01]} Be6 {[%emt 0:00:17]} 12. Nc3 {[%emt 0:00:02]} Qc6 {[%emt 0:00:22]} 13. Nb5 {[%emt 0:00:16]} Bc5 {[%emt 0:00:01]} 14. Qg3 {[%emt 0:00:06]} O-O-O {[%emt 0:00:01]} 15. Be3 {[%emt 0:00:11]} a6 {[%emt 0:00:18]} 16. Bxc5 {[%emt 0:01:26]} Qxc5 {[%emt 0:00:00]} 17. Nc3 {[%emt 0:00:03]} h5 {[%emt 0:00:15]} 18. Rad1 {[%emt 0:00:06]} g6 {[%emt 0:00:04]} 19. h4 {[%emt 0:00:22]} Bf5 {[%emt 0:00:16]} 20. Qf4 {[%emt 0:00:01]} b6 {[%emt 0:00:10]} 21. Ne4 {[%emt 0:00:11]} Rd4 {[%emt 0:00:22]} 22. Rfe1 {[%emt 0:00:17]} Rhd8 {[%emt 0:00:14]} 23. Rxd4 {[%emt 0:00:07]} Qxd4 {[%emt 0:00:00]} 24. Kh2 {[%emt 0:00:02]} Kb8 {[%emt 0:00:07]} 25. c3 {[%emt 0:00:03]} Qxa4 {[%emt 0:00:05]} 26. Qg5 {[%emt 0:00:00]} Re8 {[%emt 0:00:05]} 27. f3 {[%emt 0:00:04]} Bxe4 {[%emt 0:00:01]} 28. fxe4 {[%emt 0:00:00]} Qc6 {[%emt 0:00:05]} 29. e5 {[%emt 0:00:02]} Kb7 {[%emt 0:00:06]} 30. Qf4 {[%emt 0:00:01]} Qd5 {[%emt 0:00:02]} 31. Re2 {[%emt 0:00:01]} a5 {[%emt 0:00:02]} 32. c4 {[%emt 0:00:00]} Qe6 {[%emt 0:00:07]} 33. Qf3+ {[%emt 0:00:01]} Ka7 {[%emt 0:00:03]} 34. g3 {[%emt 0:00:01]} Re7 {[%emt 0:00:03]} 35. Qf4 {[%emt 0:00:01]} Qg4 {[%emt 0:00:03]} 36. Qxg4 {[%emt 0:00:02]} hxg4 {[%emt 0:00:00]} 37. Re4 {[%emt 0:00:00]} Ka6 {[%emt 0:00:02]} 38. Kg2 {[%emt 0:00:01]} a4 {[%emt 0:00:02]} 39. c5 {[%emt 0:00:03]} b5 {[%emt 0:00:02]} 40. Kf2 {[%emt 0:00:00]} Ka5 {[%emt 0:00:01]} 41. Ke3 {[%emt 0:00:01]} b4 {[%emt 0:00:00]} 42. Kd3 {[%emt 0:00:01]} Kb5 {[%emt 0:00:02]} 43. Rxg4 {[%emt 0:00:01]} Rxe5 {[%emt 0:00:01]} 44. Rf4 {[%emt 0:00:00]} f5 {[%emt 0:00:01]} 45. g4 {[%emt 0:00:02]} fxg4 {[%emt 0:00:00]} 46. Rxg4 {[%emt 0:00:00]} Rd5+ {[%emt 0:00:02]} 47. Ke4 {[%emt 0:00:02]} Rxc5 {[%emt 0:00:01]} 48. Rxg6 {[%emt 0:00:00]} Rc2 {[%emt 0:00:01]} 49. h5 {[%emt 0:00:01]} Rxb2 {[%emt 0:00:01]} 50. h6 {[%emt 0:00:03]} Rh2 {[%emt 0:00:01]} 51. Kd3 {[%emt 0:00:01]} a3 {[%emt 0:00:01]} 0-1

[Event "Speed Chess Championship 2020"]
[Site "Online"]
[Date "2020.11.04"]
[Round "1.18"]
[White "Fedoseev, Vladimir"]
[Black "Firouzja, Alireza"]
[Result "1-0"]
[ECO "C01"]
[WhiteElo "2676"]
[BlackElo "2749"]
[Annotator "RC"]
[PlyCount "169"]
[EventDate "2020.10.31"]
[EventType "k.o."]
[SourceTitle "playchess.com"]
[Source "ChessBase"]
[SourceQuality "1"]
[TimeControl "60+1"]

1. e4 {[%emt 0:00:01]} e6 {[%emt 0:00:01]} 2. d4 {[%emt 0:00:00]} d5 {[%emt 0:00:00]} 3. exd5 {[%emt 0:00:01]} exd5 {[%emt 0:00:00]} 4. Bd3 {[%emt 0:00:00]} Nf6 {[%emt 0:00:00]} 5. Nf3 {[%emt 0:00:00]} Bd6 {[%emt 0:00:01]} 6. O-O {[%emt 0:00:00]} O-O {[%emt 0:00:01]} 7. Re1 {[%emt 0:00:00]} c6 {[%emt 0:00:00]} 8. c3 {[%emt 0:00:01]} Bg4 {[%emt 0:00:00]} 9. Bg5 {[%emt 0:00:00]} Nbd7 {[%emt 0:00:01]} 10. Nbd2 {[%emt 0:00:02]} Qc7 {[%emt 0:00:01]} 11. Qc2 {[%emt 0:00:00]} Bh5 {[%emt 0:00:01]} 12. h3 {[%emt 0:00:02]} Bg6 {[%emt 0:00:01]} 13. Nh4 {[%emt 0:00:01]} Bxd3 {[%emt 0:00:04]} 14. Qxd3 {[%emt 0:00:00]} Rfe8 {[%emt 0:00:01]} 15. Nf5 {[%emt 0:00:01]} Bf8 {[%emt 0:00:01]} 16. Qf3 {[%emt 0:00:01]} Rxe1+ {[%emt 0:00:09]} 17. Rxe1 {[%emt 0:00:02]} Re8 {[%emt 0:00:00]} 18. Rxe8 {[%emt 0:00:09]} Nxe8 {[%emt 0:00:01]} 19. Qe3 {[%emt 0:00:02]} Ndf6 {[%emt 0:00:02]} 20. Bf4 {[%emt 0:00:06]} Qd7 {[%emt 0:00:02]} 21. g4 {[%emt 0:00:01]} Nc7 {[%emt 0:00:09]} 22. Be5 {[%emt 0:00:02]} Nfe8 {[%emt 0:00:02]} 23. Nf3 {[%emt 0:00:02]} Ne6 {[%emt 0:00:02]} 24. Bh2 {[%emt 0:00:04]} f6 {[%emt 0:00:01]} 25. Nd2 {[%emt 0:00:12]} g6 {[%emt 0:00:03]} 26. Nh4 {[%emt 0:00:01]} Bd6 {[%emt 0:00:03]} 27. Bxd6 {[%emt 0:00:01]} Qxd6 {[%emt 0:00:00]} 28. Ng2 {[%emt 0:00:01]} N8g7 {[%emt 0:00:04]} 29. f4 {[%emt 0:00:01]} Kf7 {[%emt 0:00:01]} 30. Nf3 {[%emt 0:00:01]} Nf8 {[%emt 0:00:02]} 31. Kf2 {[%emt 0:00:03]} Nd7 {[%emt 0:00:02]} 32. h4 {[%emt 0:00:06]} h5 {[%emt 0:00:04]} 33. g5 {[%emt 0:00:00]} Nf5 {[%emt 0:00:01]} 34. Qd2 {[%emt 0:00:06]} Qe7 {[%emt 0:00:04]} 35. Qe2 {[%emt 0:00:01]} Qxe2+ {[%emt 0:00:05]} 36. Kxe2 {[%emt 0:00:01]} Nb6 {[%emt 0:00:00]} 37. b3 {[%emt 0:00:03]} Nc8 {[%emt 0:00:01]} 38. Nd2 {[%emt 0:00:03]} Ncd6 {[%emt 0:00:01]} 39. Kd3 {[%emt 0:00:01]} Ke6 {[%emt 0:00:03]} 40. c4 {[%emt 0:00:01]} Ne8 {[%emt 0:00:02]} 41. cxd5+ {[%emt 0:00:03]} cxd5 {[%emt 0:00:03]} 42. Nf3 {[%emt 0:00:01]} Ned6 {[%emt 0:00:02]} 43. Nd2 {[%emt 0:00:03]} Ng3 {[%emt 0:00:02]} 44. Nf3 {[%emt 0:00:03]} Ngf5 {[%emt 0:00:05]} 45. gxf6 {[%emt 0:00:02]} Kxf6 {[%emt 0:00:03]} 46. Ne5 {[%emt 0:00:01]} Ne4 {[%emt 0:00:03]} 47. Nd7+ {[%emt 0:00:01]} Ke7 {[%emt 0:00:03]} 48. Ne5 {[%emt 0:00:01]} Kf6 {[%emt 0:00:01]} 49. Nd7+ {[%emt 0:00:00]} Kf7 {[%emt 0:00:02]} 50. Ne5+ {[%emt 0:00:01]} Kg7 {[%emt 0:00:00]} 51. Nf3 {[%emt 0:00:01]} Ned6 {[%emt 0:00:02]} 52. Ne5 {[%emt 0:00:02]} b6 {[%emt 0:00:02]} 53. Nc6 {[%emt 0:00:01]} a5 {[%emt 0:00:00]} 54. Ne5 {[%emt 0:00:02]} Kf6 {[%emt 0:00:01]} 55. Nd7+ {[%emt 0:00:01]} Ke6 {[%emt 0:00:01]} 56. Nxb6 {[%emt 0:00:01]} Nb5 {[%emt 0:00:02]} 57. Na4 {[%emt 0:00:02]} Nbxd4 {[%emt 0:00:02]} 58. Nc5+ {[%emt 0:00:01]} Ke7 {[%emt 0:00:02]} 59. a3 {[%emt 0:00:01]} Nc6 {[%emt 0:00:01]} 60. Kc3 {[%emt 0:00:01]} Kd6 {[%emt 0:00:00]} 61. Nd3 {[%emt 0:00:01]} Nfd4 {[%emt 0:00:03]} 62. b4 {[%emt 0:00:02]} a4 {[%emt 0:00:01]} 63. Kb2 {[%emt 0:00:02]} Ne6 {[%emt 0:00:01]} 64. Ne3 {[%emt 0:00:01]} Ncd4 {[%emt 0:00:01]} 65. Kc3 {[%emt 0:00:03]} Ne2+ {[%emt 0:00:01]} 66. Kd2 {[%emt 0:00:01]} N2xf4 {[%emt 0:00:01]} 67. Ne1 {[%emt 0:00:02]} Ke5 {[%emt 0:00:01]} 68. Nd1 {[%emt 0:00:03]} Kd4 {[%emt 0:00:01]} 69. Nc3 {[%emt 0:00:01]} Kc4 {[%emt 0:00:01]} 70. Nxa4 {[%emt 0:00:00]} Kb3 {[%emt 0:00:00]} 71. Nc5+ {[%emt 0:00:02]} Kxa3 {[%emt 0:00:01]} 72. Ned3 {[%emt 0:00:01]} Nxd3 {[%emt 0:00:02]} 73. Nxe6 {[%emt 0:00:01]} Nxb4 {[%emt 0:00:02]} 74. Nf4 {[%emt 0:00:01]} Nc6 {[%emt 0:00:01]} 75. Nxg6 {[%emt 0:00:00]} Ne5 {[%emt 0:00:01]} 76. Nxe5 {[%emt 0:00:01]} Kb4 {[%emt 0:00:02]} 77. Kd3 {[%emt 0:00:01]} Kc5 {[%emt 0:00:00]} 78. Nf3 {[%emt 0:00:00]} Kd6 {[%emt 0:00:00]} 79. Ke3 {[%emt 0:00:01]} Ke6 {[%emt 0:00:00]} 80. Kf4 {[%emt 0:00:01]} Kf6 {[%emt 0:00:01]} 81. Nd4 {[%emt 0:00:00]} Kg6 {[%emt 0:00:00]} 82. Ke5 {[%emt 0:00:01]} Kg7 {[%emt 0:00:00]} 83. Kxd5 {[%emt 0:00:00]} Kf6 {[%emt 0:00:00]} 84. Ke4 {[%emt 0:00:01]} Kg6 {[%emt 0:00:00]} 85. Ke5 {[%emt 0:00:00]} 1-0

[Event "Speed Chess Championship 2020"]
[Site "Online"]
[Date "2020.11.08"]
[Round "1.18"]
[White "Abdusattorov, Nodirbek"]
[Black "So, Wesley"]
[Result "1/2-1/2"]
[ECO "C48"]
[WhiteElo "2662"]
[BlackElo "2816"]
[Annotator "ChessBase"]
[PlyCount "74"]
[EventDate "2020.10.31"]
[EventType "k.o."]
[SourceTitle "playchess.com"]
[Source "ChessBase"]
[SourceQuality "1"]
[TimeControl "180+1"]

1. e4 {[%emt 0:00:01]} e5 {[%emt 0:00:01]} 2. Nf3 {[%emt 0:00:01]} Nc6 {[%emt 0:00:00]} 3. Nc3 {[%emt 0:00:01]} Nf6 {[%emt 0:00:01]} 4. Bb5 {[%emt 0:00:02]} Nd4 {[%emt 0:00:01]} 5. O-O {[%emt 0:00:00]} c6 {[%emt 0:00:01]} 6. Bd3 {[%emt 0:00:02]} Nxf3+ {[%emt 0:00:01]} 7. Qxf3 {[%emt 0:00:00]} d6 {[%emt 0:00:00]} 8. Be2 {[%emt 0:00:01]} g6 {[%emt 0:00:01]} 9. d3 {[%emt 0:00:02]} Nh5 {[%emt 0:00:00]} 10. g3 {[%emt 0:00:15]} Ng7 {[%emt 0:00:49]} 11. Qg2 {[%emt 0:00:04]} Ne6 {[%emt 0:00:01]} 12. f4 {[%emt 0:00:06]} Nd4 {[%emt 0:00:05]} 13. Bd1 {[%emt 0:00:02]} Be6 {[%emt 0:00:07]} 14. Ne2 {[%emt 0:00:03]} Nxe2+ {[%emt 0:00:05]} 15. Bxe2 {[%emt 0:00:00]} Qd7 {[%emt 0:00:00]} 16. Qf2 {[%emt 0:00:09]} Bh3 {[%emt 0:00:02]} 17. Re1 {[%emt 0:00:01]} Bg7 {[%emt 0:00:04]} 18. Be3 {[%emt 0:00:01]} O-O {[%emt 0:00:06]} 19. d4 {[%emt 0:00:06]} f5 {[%emt 0:00:12]} 20. dxe5 {[%emt 0:00:07]} dxe5 {[%emt 0:00:00]} 21. Rad1 {[%emt 0:00:01]} Qf7 {[%emt 0:00:01]} 22. b3 {[%emt 0:00:20]} fxe4 {[%emt 0:00:03]} 23. fxe5 {[%emt 0:00:29]} Qc7 {[%emt 0:00:11]} 24. Bc4+ {[%emt 0:00:07]} Kh8 {[%emt 0:00:01]} 25. Qd2 {[%emt 0:00:02]} Rad8 {[%emt 0:00:07]} 26. Qb4 {[%emt 0:00:05]} b5 {[%emt 0:00:12]} 27. Rxd8 {[%emt 0:00:15]} Rxd8 {[%emt 0:00:00]} 28. Bf1 {[%emt 0:00:04]} Bxf1 {[%emt 0:00:03]} 29. Rxf1 {[%emt 0:00:00]} Qxe5 {[%emt 0:00:02]} 30. Rf7 {[%emt 0:00:09]} h5 {[%emt 0:00:15]} 31. Qe7 {[%emt 0:00:14]} Rd1+ {[%emt 0:00:12]} 32. Kg2 {[%emt 0:00:05]} Qxe7 {[%emt 0:00:03]} 33. Rxe7 {[%emt 0:00:00]} Re1 {[%emt 0:00:01]} 34. Kf2 {[%emt 0:00:05]} Rh1 {[%emt 0:00:01]} 35. Kg2 {[%emt 0:00:04]} Re1 {[%emt 0:00:01]} 36. Kf2 {[%emt 0:00:05]} Rh1 {[%emt 0:00:01]} 37. Kg2 {[%emt 0:00:04]} Re1 {[%emt 0:00:01]} 1/2-1/2

[Event "Speed Chess Championship 2020"]
[Site "Online"]
[Date "2020.11.12"]
[Round "1.18"]
[White "Martirosyan, Haik M."]
[Black "Nakamura, Hikaru"]
[Result "0-1"]
[ECO "D37"]
[WhiteElo "2622"]
[BlackElo "2736"]
[Annotator "ChessBase"]
[PlyCount "94"]
[EventDate "2020.10.31"]
[EventType "k.o."]
[SourceTitle "playchess.com"]
[Source "ChessBase"]
[SourceQuality "1"]
[TimeControl "60+1"]

1. d4 {[%emt 0:00:01]} Nf6 {[%emt 0:00:01]} 2. Nf3 {[%emt 0:00:00]} e6 {[%emt 0:00:00]} 3. c4 {[%emt 0:00:00]} d5 {[%emt 0:00:00]} 4. Nc3 {[%emt 0:00:01]} Be7 {[%emt 0:00:01]} 5. Bf4 {[%emt 0:00:00]} O-O {[%emt 0:00:00]} 6. e3 {[%emt 0:00:00]} Nbd7 {[%emt 0:00:00]} 7. Be2 {[%emt 0:00:01]} dxc4 {[%emt 0:00:01]} 8. O-O {[%emt 0:00:01]} a6 {[%emt 0:00:00]} 9. a4 {[%emt 0:00:00]} b6 {[%emt 0:00:00]} 10. Bxc4 {[%emt 0:00:00]} Bd6 {[%emt 0:00:01]} 11. Bxd6 {[%emt 0:00:02]} cxd6 {[%emt 0:00:00]} 12. Bd3 {[%emt 0:00:00]} Bb7 {[%emt 0:00:01]} 13. e4 {[%emt 0:00:01]} e5 {[%emt 0:00:01]} 14. Re1 {[%emt 0:00:00]} Re8 {[%emt 0:00:00]} 15. Qd2 {[%emt 0:00:00]} Qe7 {[%emt 0:00:01]} 16. Rad1 {[%emt 0:00:01]} Rad8 {[%emt 0:00:00]} 17. Bb1 {[%emt 0:00:00]} g6 {[%emt 0:00:02]} 18. Ba2 {[%emt 0:00:05]} Kg7 {[%emt 0:00:00]} 19. h3 {[%emt 0:00:02]} h6 {[%emt 0:00:01]} 20. Re3 {[%emt 0:00:03]} Nb8 {[%emt 0:00:01]} 21. Rde1 {[%emt 0:00:13]} Qf8 {[%emt 0:00:08]} 22. b4 {[%emt 0:00:11]} Nc6 {[%emt 0:00:06]} 23. b5 {[%emt 0:00:01]} axb5 {[%emt 0:00:00]} 24. axb5 {[%emt 0:00:00]} Na5 {[%emt 0:00:03]} 25. Rd3 {[%emt 0:00:05]} Ra8 {[%emt 0:00:06]} 26. dxe5 {[%emt 0:00:02]} dxe5 {[%emt 0:00:00]} 27. Nd5 {[%emt 0:00:03]} Bxd5 {[%emt 0:00:02]} 28. Bxd5 {[%emt 0:00:09]} Rac8 {[%emt 0:00:03]} 29. g4 {[%emt 0:00:06]} Qe7 {[%emt 0:00:05]} 30. Kg2 {[%emt 0:00:02]} Rc5 {[%emt 0:00:02]} 31. Qb2 {[%emt 0:00:06]} Nc4 {[%emt 0:00:05]} 32. Bxc4 {[%emt 0:00:02]} Rxc4 {[%emt 0:00:00]} 33. Nd2 {[%emt 0:00:03]} Rb4 {[%emt 0:00:02]} 34. Rb3 {[%emt 0:00:01]} Rd4 {[%emt 0:00:00]} 35. Nf3 {[%emt 0:00:01]} Rc4 {[%emt 0:00:04]} 36. Rc3 {[%emt 0:00:03]} Rxe4 {[%emt 0:00:08]} 37. Rxe4 {[%emt 0:00:02]} Nxe4 {[%emt 0:00:00]} 38. Rc6 {[%emt 0:00:00]} Nf6 {[%emt 0:00:03]} 39. Rxb6 {[%emt 0:00:01]} Nd5 {[%emt 0:00:11]} 40. Rc6 {[%emt 0:00:01]} Nf4+ {[%emt 0:00:01]} 41. Kg3 {[%emt 0:00:01]} g5 {[%emt 0:00:03]} 42. b6 {[%emt 0:00:01]} Qd7 {[%emt 0:00:02]} 43. Rc7 {[%emt 0:00:03]} Qd6 {[%emt 0:00:03]} 44. Rc2 {[%emt 0:00:05]} Kh7 {[%emt 0:00:02]} 45. Rd2 {[%emt 0:00:01]} Nd3 {[%emt 0:00:00]} 46. Nxe5 {[%emt 0:00:04]} Rxe5 {[%emt 0:00:02]} 47. Kg2 {[%emt 0:00:01]} Qc6+ {[%emt 0:00:03]} 0-1